[Event "*** Titled Tuesday Blitz"]
[Site "Chess.com"]
[Date "2018.08.07"]
[Round "9"]
[White "Zhuu96"]
[Black "GadimbayliA"]
[Result "0-1"]
[WhiteElo "2821"]
[BlackElo "2719"]
[TimeControl "180+2"]
[EndTime "15:05:10 PDT"]
[Termination "GadimbayliA won by resignation"]

1. e4 {[%clk 0:03:00.4]} 1... e6 {[%clk 0:03:01.9]} 2. d4 {[%clk 0:03:01.2]}
2... d5 {[%clk 0:03:01]} 3. Nc3 {[%clk 0:03:02.5]} 3... Bb4 {[%clk 0:03:00.1]}
4. e5 {[%clk 0:03:03.5]} 4... c5 {[%clk 0:02:59.2]} 5. a3 {[%clk 0:03:04.1]}
5... Bxc3+ {[%clk 0:02:59.8]} 6. bxc3 {[%clk 0:03:05.3]} 6... Ne7 {[%clk
0:03:00.5]} 7. Qg4 {[%clk 0:03:06.1]} 7... Qc7 {[%clk 0:03:00.1]} 8. Qxg7 {[%clk
0:03:06.7]} 8... Rg8 {[%clk 0:03:01.3]} 9. Qxh7 {[%clk 0:03:07.9]} 9... cxd4
{[%clk 0:03:02.4]} 10. Ne2 {[%clk 0:03:09.1]} 10... dxc3 {[%clk 0:03:03.1]} 11.
f4 {[%clk 0:03:10.3]} 11... Nbc6 {[%clk 0:03:03]} 12. h4 {[%clk 0:03:10.1]}
12... Bd7 {[%clk 0:03:02.2]} 13. h5 {[%clk 0:03:10.7]} 13... O-O-O {[%clk
0:03:03.1]} 14. Qd3 {[%clk 0:03:10.1]} 14... d4 {[%clk 0:03:03.4]} 15. h6 {[%clk
0:03:10.9]} 15... Kb8 {[%clk 0:03:04]} 16. h7 {[%clk 0:03:11.7]} 16... Rh8
{[%clk 0:03:05.3]} 17. g4 {[%clk 0:03:13]} 17... b6 {[%clk 0:03:03.7]} 18. Ng3
{[%clk 0:03:05.3]} 18... Bc8 {[%clk 0:02:59.7]} 19. Ne4 {[%clk 0:03:04.7]} 19...
Nd5 {[%clk 0:02:49.1]} 20. Rb1 {[%clk 0:03:00.6]} 20... f5 {[%clk 0:02:24.1]}
21. exf6 {[%clk 0:03:00.3]} 21... Rxh7 {[%clk 0:02:23.4]} 22. Rxh7 {[%clk
0:03:01.3]} 22... Qxh7 {[%clk 0:02:23]} 23. g5 {[%clk 0:02:44.1]} 23... e5
{[%clk 0:02:09.4]} 24. Nf2 {[%clk 0:02:35.9]} 24... Bf5 {[%clk 0:02:04.6]} 25.
Qb5 {[%clk 0:02:34.2]} 25... e4 {[%clk 0:01:28.8]} 26. Qxc6 {[%clk 0:02:31]}
26... d3 {[%clk 0:01:09.5]} 27. cxd3 {[%clk 0:01:09.4]} 27... exd3 {[%clk
0:01:09]} 28. Bxd3 {[%clk 0:01:07.1]} 28... Bxd3 {[%clk 0:01:09.1]} 29. Rb4
{[%clk 0:00:58.8]} 29... Nxb4 {[%clk 0:01:06]} 30. axb4 {[%clk 0:00:59.6]} 30...
Qh5 {[%clk 0:00:50.8]} 31. Nxd3 {[%clk 0:00:58]} 31... Rxd3 {[%clk 0:00:49.3]}
32. Qe4 {[%clk 0:00:52.6]} 32... Rd1+ {[%clk 0:00:39]} 33. Kf2 {[%clk
0:00:53.7]} 33... Qh2+ {[%clk 0:00:35.4]} 34. Kf3 {[%clk 0:00:51.5]} 34... Qh1+
{[%clk 0:00:31.8]} 0-1

[Event "*** Titled Tuesday Blitz"]
[Site "Chess.com"]
[Date "2018.08.07"]
[Round "9"]
[White "Makalexa"]
[Black "tteshan"]
[Result "1-0"]
[WhiteElo "2148"]
[BlackElo "2064"]
[TimeControl "180+2"]
[EndTime "15:05:10 PDT"]
[Termination "Makalexa won by resignation"]

1. e4 {[%clk 0:03:01.9]} 1... c5 {[%clk 0:03:00.4]} 2. Nf3 {[%clk 0:03:02.2]}
2... Nc6 {[%clk 0:03:01.3]} 3. d4 {[%clk 0:03:01.6]} 3... cxd4 {[%clk
0:03:02.3]} 4. Nxd4 {[%clk 0:03:02.6]} 4... g6 {[%clk 0:03:03.8]} 5. c4 {[%clk
0:03:00.3]} 5... Bg7 {[%clk 0:03:04.4]} 6. Nc2 {[%clk 0:03:00.8]} 6... Nf6
{[%clk 0:03:03.6]} 7. Nc3 {[%clk 0:03:00.9]} 7... O-O {[%clk 0:03:02.5]} 8. Be2
{[%clk 0:02:59.6]} 8... d6 {[%clk 0:03:01.7]} 9. O-O {[%clk 0:02:59]} 9... Be6
{[%clk 0:03:00.5]} 10. Be3 {[%clk 0:02:52.1]} 10... Rc8 {[%clk 0:03:00.1]} 11.
Qd2 {[%clk 0:02:49.3]} 11... Ng4 {[%clk 0:02:55.2]} 12. Bxg4 {[%clk 0:02:47.7]}
12... Bxg4 {[%clk 0:02:56.5]} 13. Rac1 {[%clk 0:02:39.3]} 13... Be6 {[%clk
0:02:56.1]} 14. b3 {[%clk 0:02:39]} 14... Qa5 {[%clk 0:02:52]} 15. Nd4 {[%clk
0:02:39.2]} 15... Nxd4 {[%clk 0:02:51.2]} 16. Bxd4 {[%clk 0:02:39.5]} 16... Bxd4
{[%clk 0:02:51.2]} 17. Qxd4 {[%clk 0:02:39.6]} 17... Qc5 {[%clk 0:02:52.5]} 18.
Rfd1 {[%clk 0:02:28.6]} 18... Qxd4 {[%clk 0:02:52.4]} 19. Rxd4 {[%clk
0:02:29.7]} 19... Rc5 {[%clk 0:02:49.8]} 20. f3 {[%clk 0:02:25]} 20... Rfc8
{[%clk 0:02:44.9]} 21. Rcd1 {[%clk 0:02:16.5]} 21... Kf8 {[%clk 0:02:40.9]} 22.
a4 {[%clk 0:02:16]} 22... a5 {[%clk 0:02:35.9]} 23. Kf2 {[%clk 0:02:15.9]} 23...
R8c6 {[%clk 0:02:32.1]} 24. Ke3 {[%clk 0:02:10.2]} 24... Ke8 {[%clk 0:02:29.7]}
25. h3 {[%clk 0:02:00.2]} 25... Rb6 {[%clk 0:02:26.2]} 26. Nb5 {[%clk
0:01:59.5]} 26... Bd7 {[%clk 0:02:20]} 27. Rd5 {[%clk 0:01:50.4]} 27... Rc8
{[%clk 0:02:10.8]} 28. h4 {[%clk 0:01:49.3]} 28... Bxb5 {[%clk 0:02:03.1]} 29.
cxb5 {[%clk 0:01:25.3]} 29... Rc5 {[%clk 0:01:49.7]} 30. h5 {[%clk 0:01:20.6]}
30... e6 {[%clk 0:01:35.1]} 31. Rxc5 {[%clk 0:01:17.4]} 31... dxc5 {[%clk
0:01:34.6]} 32. e5 {[%clk 0:01:18.2]} 32... g5 {[%clk 0:01:25.4]} 33. h6 {[%clk
0:01:18.1]} 33... Ke7 {[%clk 0:01:25.6]} 34. g3 {[%clk 0:01:15]} 34... f6 {[%clk
0:01:26.5]} 35. f4 {[%clk 0:01:15.9]} 35... Kf7 {[%clk 0:01:15]} 36. Rd8 {[%clk
0:01:06.1]} 36... Kg6 {[%clk 0:01:12.4]} 37. Kd3 {[%clk 0:01:07.1]} 37... Kxh6
{[%clk 0:01:11.3]} 38. Kc4 {[%clk 0:01:07.6]} 38... gxf4 {[%clk 0:01:08.4]} 39.
gxf4 {[%clk 0:01:07.9]} 39... fxe5 {[%clk 0:01:10]} 40. fxe5 {[%clk 0:01:08.3]}
40... Kg6 {[%clk 0:01:07.1]} 41. Kxc5 {[%clk 0:01:08.7]} 41... Kf5 {[%clk
0:01:06.9]} 42. Kxb6 {[%clk 0:01:07.1]} 42... Kxe5 {[%clk 0:01:08.2]} 43. Kxb7
{[%clk 0:01:07.5]} 43... h5 {[%clk 0:01:09.1]} 44. Rh8 {[%clk 0:01:07.3]} 1-0

[Event "*** Titled Tuesday Blitz"]
[Site "Chess.com"]
[Date "2018.08.07"]
[Round "9"]
[White "MarshKnight"]
[Black "krzysztofszczurek"]
[Result "1-0"]
[WhiteElo "2091"]
[BlackElo "2337"]
[TimeControl "180+2"]
[EndTime "15:05:32 PDT"]
[Termination "MarshKnight won on time"]

1. e4 {[%clk 0:03:01.9]} 1... c5 {[%clk 0:02:56.7]} 2. Nf3 {[%clk 0:03:02.5]}
2... d6 {[%clk 0:02:57.3]} 3. d4 {[%clk 0:03:03.8]} 3... cxd4 {[%clk 0:02:58.4]}
4. Nxd4 {[%clk 0:03:05.3]} 4... Nf6 {[%clk 0:02:59.7]} 5. Nc3 {[%clk 0:03:06.9]}
5... a6 {[%clk 0:03:00.7]} 6. Bg5 {[%clk 0:03:07.2]} 6... e6 {[%clk 0:03:01.6]}
7. Qf3 {[%clk 0:03:08.6]} 7... Be7 {[%clk 0:02:58.9]} 8. O-O-O {[%clk
0:03:10.1]} 8... Nbd7 {[%clk 0:02:59.2]} 9. Kb1 {[%clk 0:03:09.6]} 9... O-O
{[%clk 0:02:57.1]} 10. Bc1 {[%clk 0:03:10.4]} 10... Qc7 {[%clk 0:02:54.3]} 11.
g4 {[%clk 0:03:11.2]} 11... Ne5 {[%clk 0:02:52.9]} 12. Qh3 {[%clk 0:03:06.2]}
12... b5 {[%clk 0:02:47.9]} 13. g5 {[%clk 0:03:04.8]} 13... Ne8 {[%clk
0:02:47.4]} 14. f4 {[%clk 0:03:05.7]} 14... Ng6 {[%clk 0:02:47.3]} 15. f5 {[%clk
0:03:00.7]} 15... exf5 {[%clk 0:02:34.8]} 16. Nd5 {[%clk 0:03:00.4]} 16... Qa7
{[%clk 0:02:29]} 17. exf5 {[%clk 0:02:51]} 17... Ne5 {[%clk 0:01:49.6]} 18. Qg3
{[%clk 0:02:20.2]} 18... f6 {[%clk 0:01:34.9]} 19. Rg1 {[%clk 0:01:58.6]} 19...
fxg5 {[%clk 0:01:16.9]} 20. Bxg5 {[%clk 0:01:58.2]} 20... Bxg5 {[%clk
0:01:17.2]} 21. Qxg5 {[%clk 0:01:59.2]} 21... Qf7 {[%clk 0:00:53.7]} 22. Bg2
{[%clk 0:01:24.2]} 22... Ra7 {[%clk 0:00:39]} 23. Rdf1 {[%clk 0:01:09.3]} 23...
Nf6 {[%clk 0:00:16]} 24. Nf4 {[%clk 0:00:18.5]} 24... Re7 {[%clk 0:00:05.9]} 25.
Nfe6 {[%clk 0:00:18.8]} 25... Rfe8 {[%clk 0:00:02.2]} 26. Bh1 {[%clk 0:00:11]}
1-0

[Event "*** Titled Tuesday Blitz"]
[Site "Chess.com"]
[Date "2018.08.07"]
[Round "9"]
[White "dereito"]
[Black "BlackBoarder"]
[Result "1-0"]
[WhiteElo "2308"]
[BlackElo "2381"]
[TimeControl "180+2"]
[EndTime "15:06:01 PDT"]
[Termination "dereito won by resignation"]

1. d4 {[%clk 0:03:01]} 1... Nf6 {[%clk 0:02:58.7]} 2. Bf4 {[%clk 0:03:02.4]}
2... e6 {[%clk 0:02:59.8]} 3. e3 {[%clk 0:02:59.6]} 3... d5 {[%clk 0:03:00.8]}
4. Nf3 {[%clk 0:02:55.2]} 4... c5 {[%clk 0:03:01.2]} 5. c3 {[%clk 0:02:55.1]}
5... Nc6 {[%clk 0:03:02.2]} 6. Nbd2 {[%clk 0:02:49.3]} 6... Be7 {[%clk
0:03:03.2]} 7. Bd3 {[%clk 0:02:43.9]} 7... Nh5 {[%clk 0:03:03.4]} 8. dxc5 {[%clk
0:02:17.4]} 8... Nxf4 {[%clk 0:03:03.5]} 9. exf4 {[%clk 0:02:17.1]} 9... Bxc5
{[%clk 0:03:04.5]} 10. Nb3 {[%clk 0:02:10.9]} 10... Bb6 {[%clk 0:02:57.2]} 11.
O-O {[%clk 0:02:08.1]} 11... h6 {[%clk 0:02:58.1]} 12. Re1 {[%clk 0:02:04.6]}
12... O-O {[%clk 0:02:58.8]} 13. Qd2 {[%clk 0:02:02.2]} 13... Qf6 {[%clk
0:02:59.3]} 14. Nbd4 {[%clk 0:01:48.5]} 14... Bd7 {[%clk 0:02:51.2]} 15. Nxc6
{[%clk 0:01:39.2]} 15... Bxc6 {[%clk 0:02:49.6]} 16. Ne5 {[%clk 0:01:41.1]}
16... Rac8 {[%clk 0:02:48.3]} 17. a4 {[%clk 0:01:29.1]} 17... a5 {[%clk
0:02:42.7]} 18. b4 {[%clk 0:01:19.6]} 18... Rfd8 {[%clk 0:02:42.7]} 19. Ng4
{[%clk 0:01:10.8]} 19... Qh4 {[%clk 0:02:36.5]} 20. Ne5 {[%clk 0:01:08.9]} 20...
Be8 {[%clk 0:02:29]} 21. b5 {[%clk 0:01:07.2]} 21... Qf6 {[%clk 0:02:27.1]} 22.
g3 {[%clk 0:01:03.6]} 22... Rc7 {[%clk 0:02:20]} 23. Rac1 {[%clk 0:01:04.4]}
23... Rdc8 {[%clk 0:02:20.9]} 24. c4 {[%clk 0:00:48.2]} 24... dxc4 {[%clk
0:02:14.6]} 25. Rxc4 {[%clk 0:00:47.5]} 25... Rxc4 {[%clk 0:02:13]} 26. Nxc4
{[%clk 0:00:46.4]} 26... Qd4 {[%clk 0:02:03.1]} 27. Nxb6 {[%clk 0:00:45.5]}
27... Qxb6 {[%clk 0:02:05]} 28. f5 {[%clk 0:00:47]} 28... Rd8 {[%clk 0:01:40.8]}
29. fxe6 {[%clk 0:00:46.8]} 29... Qd4 {[%clk 0:01:36.6]} 30. e7 {[%clk 0:00:36]}
30... Rd7 {[%clk 0:01:30.5]} 31. Qc2 {[%clk 0:00:33]} 31... Qxd3 {[%clk
0:01:26.3]} 32. Qc8 {[%clk 0:00:29.8]} 32... Kh7 {[%clk 0:01:12.6]} 33. Qxe8
{[%clk 0:00:29.1]} 33... Qd2 {[%clk 0:00:54.2]} 34. Qxd7 {[%clk 0:00:19.8]}
34... Qxe1+ {[%clk 0:00:52.8]} 35. Kg2 {[%clk 0:00:19.8]} 35... Qe4+ {[%clk
0:00:53.8]} 36. Kh3 {[%clk 0:00:15.9]} 36... g5 {[%clk 0:00:36.1]} 37. e8=Q
{[%clk 0:00:12.5]} 37... g4+ {[%clk 0:00:36.3]} 38. Kh4 {[%clk 0:00:09.7]} 1-0

[Event "*** Titled Tuesday Blitz"]
[Site "Chess.com"]
[Date "2018.08.07"]
[Round "9"]
[White "ChrisTool2"]
[Black "evgenysharapov"]
[Result "0-1"]
[WhiteElo "2256"]
[BlackElo "2378"]
[TimeControl "180+2"]
[EndTime "15:06:01 PDT"]
[Termination "evgenysharapov won by resignation"]

1. d4 {[%clk 0:03:01.9]} 1... d5 {[%clk 0:03:00.4]} 2. c4 {[%clk 0:03:01.9]}
2... c6 {[%clk 0:03:01.1]} 3. Nf3 {[%clk 0:03:01.1]} 3... Nf6 {[%clk 0:03:01.4]}
4. Nc3 {[%clk 0:03:02.2]} 4... e6 {[%clk 0:03:01.9]} 5. g3 {[%clk 0:03:01.6]}
5... Be7 {[%clk 0:03:01.6]} 6. Bg2 {[%clk 0:03:02.3]} 6... O-O {[%clk 0:03:02]}
7. O-O {[%clk 0:03:03.3]} 7... Nbd7 {[%clk 0:02:53.4]} 8. Qc2 {[%clk 0:03:03.6]}
8... b6 {[%clk 0:02:51.1]} 9. Rd1 {[%clk 0:02:52.6]} 9... Bb7 {[%clk 0:02:50]}
10. e4 {[%clk 0:02:26.6]} 10... dxc4 {[%clk 0:02:47.8]} 11. Bf4 {[%clk
0:02:05.1]} 11... b5 {[%clk 0:02:46]} 12. a4 {[%clk 0:01:41.8]} 12... a6 {[%clk
0:02:46]} 13. Ne5 {[%clk 0:01:15.8]} 13... Nxe5 {[%clk 0:02:41.6]} 14. Bxe5
{[%clk 0:01:09.6]} 14... Qc8 {[%clk 0:02:24.1]} 15. d5 {[%clk 0:00:58.4]} 15...
cxd5 {[%clk 0:02:15.2]} 16. Bxf6 {[%clk 0:00:51.5]} 16... Bxf6 {[%clk
0:02:14.2]} 17. exd5 {[%clk 0:00:53.1]} 17... Bxc3 {[%clk 0:02:11.1]} 18. bxc3
{[%clk 0:00:42.4]} 18... Bxd5 {[%clk 0:02:08.7]} 19. Bxd5 {[%clk 0:00:41.9]}
19... exd5 {[%clk 0:02:09.5]} 20. Rxd5 {[%clk 0:00:41.6]} 20... Rd8 {[%clk
0:01:56.6]} 21. Rad1 {[%clk 0:00:37.8]} 21... Rxd5 {[%clk 0:01:55.7]} 22. Rxd5
{[%clk 0:00:39.7]} 22... Qe6 {[%clk 0:01:43.9]} 23. Qd1 {[%clk 0:00:30.7]} 23...
g6 {[%clk 0:01:27.9]} 24. Qd4 {[%clk 0:00:23.3]} 24... bxa4 {[%clk 0:01:14.6]}
25. Qxc4 {[%clk 0:00:21.2]} 25... Rc8 {[%clk 0:01:10.8]} 26. Qd4 {[%clk
0:00:19.7]} 26... a3 {[%clk 0:01:06.9]} 27. Rd8+ {[%clk 0:00:12.4]} 27... Rxd8
{[%clk 0:01:07.3]} 28. Qxd8+ {[%clk 0:00:14.3]} 28... Kg7 {[%clk 0:01:08]} 29.
Qd4+ {[%clk 0:00:15.7]} 29... Qf6 {[%clk 0:01:08.6]} 30. Qc4 {[%clk 0:00:11.4]}
30... a5 {[%clk 0:01:08.9]} 31. Qb3 {[%clk 0:00:11.8]} 31... a2 {[%clk
0:01:08.9]} 32. Qxa2 {[%clk 0:00:09.1]} 32... Qxc3 {[%clk 0:01:08.7]} 33. h4
{[%clk 0:00:08.8]} 33... h5 {[%clk 0:01:08.8]} 34. Kh2 {[%clk 0:00:07.9]} 34...
Qb4 {[%clk 0:01:04.3]} 35. Qa1+ {[%clk 0:00:09.2]} 35... Kg8 {[%clk 0:01:03.7]}
36. Qf6 {[%clk 0:00:09.3]} 36... a4 {[%clk 0:01:02.8]} 37. Qd8+ {[%clk
0:00:09.9]} 37... Kg7 {[%clk 0:01:02.4]} 38. Qa8 {[%clk 0:00:06.4]} 38... a3
{[%clk 0:01:01.8]} 39. Kg2 {[%clk 0:00:07.1]} 39... Qb2 {[%clk 0:01:01.9]} 40.
Qa7 {[%clk 0:00:03.5]} 40... a2 {[%clk 0:01:02]} 0-1

[Event "*** Titled Tuesday Blitz"]
[Site "Chess.com"]
[Date "2018.08.07"]
[Round "9"]
[White "FearlessKing64"]
[Black "jposthuma"]
[Result "0-1"]
[WhiteElo "2223"]
[BlackElo "2357"]
[TimeControl "180+2"]
[EndTime "15:06:11 PDT"]
[Termination "jposthuma won by resignation"]

1. e4 {[%clk 0:03:01.7]} 1... c6 {[%clk 0:02:56.8]} 2. d4 {[%clk 0:03:02.3]}
2... d5 {[%clk 0:02:58.7]} 3. exd5 {[%clk 0:03:03.9]} 3... cxd5 {[%clk
0:03:00.5]} 4. c4 {[%clk 0:03:05.5]} 4... Nf6 {[%clk 0:03:01.5]} 5. Nc3 {[%clk
0:03:07]} 5... Nc6 {[%clk 0:03:03]} 6. Nf3 {[%clk 0:03:08]} 6... Bg4 {[%clk
0:03:03.8]} 7. cxd5 {[%clk 0:03:09.5]} 7... Nxd5 {[%clk 0:03:05.4]} 8. Qb3
{[%clk 0:03:10.7]} 8... Bxf3 {[%clk 0:03:06.8]} 9. gxf3 {[%clk 0:03:11.8]} 9...
e6 {[%clk 0:03:08.4]} 10. Qxb7 {[%clk 0:03:11.7]} 10... Nxd4 {[%clk 0:03:09.7]}
11. Bb5+ {[%clk 0:03:12.4]} 11... Nxb5 {[%clk 0:03:11.3]} 12. Qc6+ {[%clk
0:03:13.6]} 12... Ke7 {[%clk 0:03:12.8]} 13. Qxb5 {[%clk 0:03:13.7]} 13... Nxc3
{[%clk 0:03:13.7]} 14. bxc3 {[%clk 0:03:13.6]} 14... Rb8 {[%clk 0:03:14.8]} 15.
Qc5+ {[%clk 0:02:54.3]} 15... Ke8 {[%clk 0:03:15.1]} 16. Qxa7 {[%clk 0:02:34.9]}
16... Bd6 {[%clk 0:03:15.8]} 17. Qa4+ {[%clk 0:02:31.9]} 17... Kf8 {[%clk
0:02:39.5]} 18. Ba3 {[%clk 0:02:30.3]} 18... Qe7 {[%clk 0:02:13.4]} 19. Bxd6
{[%clk 0:02:27.2]} 19... Qxd6 {[%clk 0:02:15.3]} 20. O-O {[%clk 0:02:25.9]}
20... g6 {[%clk 0:01:55.5]} 21. Rfd1 {[%clk 0:02:13.9]} 21... Qe5 {[%clk
0:01:49.9]} 22. Qd4 {[%clk 0:02:02.2]} 22... Qxd4 {[%clk 0:01:40.9]} 23. cxd4
{[%clk 0:02:04.1]} 23... Rb5 {[%clk 0:01:33.2]} 24. a4 {[%clk 0:02:04]} 24...
Ra5 {[%clk 0:01:32.9]} 25. Kf1 {[%clk 0:01:59.2]} 25... Ke7 {[%clk 0:01:29.6]}
26. Rd2 {[%clk 0:01:52]} 26... Rha8 {[%clk 0:01:09.5]} 27. Rda2 {[%clk
0:01:48.9]} 27... Rd8 {[%clk 0:01:10.3]} 28. Rd2 {[%clk 0:01:48.5]} 28... e5
{[%clk 0:01:05.9]} 29. Re1 {[%clk 0:01:33.9]} 29... Kf8 {[%clk 0:00:55.7]} 30.
d5 {[%clk 0:01:21.5]} 30... Rdxd5 {[%clk 0:00:46.5]} 31. Rxd5 {[%clk 0:01:19.5]}
31... Rxd5 {[%clk 0:00:48.4]} 32. Ra1 {[%clk 0:01:20.1]} 32... Ra5 {[%clk
0:00:48.6]} 33. Ke2 {[%clk 0:01:20.7]} 33... Ke7 {[%clk 0:00:47.8]} 34. Kd3
{[%clk 0:01:22]} 34... Kd6 {[%clk 0:00:48.8]} 35. Kc4 {[%clk 0:01:23.5]} 35...
Kc6 {[%clk 0:00:49.8]} 36. Kb4 {[%clk 0:01:24.5]} 36... Rd5 {[%clk 0:00:35.7]}
37. a5 {[%clk 0:01:25]} 37... Rd4+ {[%clk 0:00:36]} 38. Kc3 {[%clk 0:01:26]}
38... Kb7 {[%clk 0:00:32.4]} 39. Rb1+ {[%clk 0:01:13.7]} 39... Ka6 {[%clk
0:00:29.4]} 40. Ra1 {[%clk 0:01:11.1]} 40... Rf4 {[%clk 0:00:25.5]} 41. Kd3
{[%clk 0:01:01]} 41... Rxf3+ {[%clk 0:00:25.1]} 42. Ke4 {[%clk 0:01:02.6]} 42...
Rxf2 {[%clk 0:00:25.4]} 43. Kxe5 {[%clk 0:01:03.9]} 43... Rxh2 {[%clk
0:00:24.3]} 44. Kf6 {[%clk 0:01:05.3]} 44... Rf2+ {[%clk 0:00:24.6]} 45. Kg7
{[%clk 0:01:06]} 45... h5 {[%clk 0:00:24.6]} 46. Kh6 {[%clk 0:01:07.3]} 46... h4
{[%clk 0:00:23.9]} 47. Kg5 {[%clk 0:01:08.4]} 47... h3 {[%clk 0:00:20.3]} 48.
Kg4 {[%clk 0:01:09.6]} 48... h2 {[%clk 0:00:21.4]} 49. Kg3 {[%clk 0:01:10.7]}
49... Ra2 {[%clk 0:00:19.7]} 50. Rf1 {[%clk 0:01:07]} 50... Kxa5 {[%clk
0:00:19.1]} 51. Rxf7 {[%clk 0:01:08]} 51... h1=Q {[%clk 0:00:18.6]} 0-1

[Event "*** Titled Tuesday Blitz"]
[Site "Chess.com"]
[Date "2018.08.07"]
[Round "9"]
[White "DACF2905"]
[Black "senecacrane"]
[Result "1-0"]
[WhiteElo "2122"]
[BlackElo "2110"]
[TimeControl "180+2"]
[EndTime "15:06:34 PDT"]
[Termination "DACF2905 won by resignation"]

1. e4 {[%clk 0:03:01.9]} 1... c6 {[%clk 0:02:58.9]} 2. d4 {[%clk 0:03:02.3]}
2... d5 {[%clk 0:02:59.9]} 3. exd5 {[%clk 0:03:03.3]} 3... cxd5 {[%clk
0:03:00.8]} 4. c4 {[%clk 0:03:04.9]} 4... e6 {[%clk 0:03:01.7]} 5. Nf3 {[%clk
0:03:06.4]} 5... Nf6 {[%clk 0:03:02.9]} 6. Nc3 {[%clk 0:03:07.8]} 6... Bb4
{[%clk 0:03:03.5]} 7. Bd3 {[%clk 0:03:08.5]} 7... dxc4 {[%clk 0:03:04]} 8. Bxc4
{[%clk 0:03:09.7]} 8... O-O {[%clk 0:03:05.9]} 9. O-O {[%clk 0:03:09.8]} 9... b6
{[%clk 0:03:07.2]} 10. a3 {[%clk 0:03:10.9]} 10... Bxc3 {[%clk 0:03:07.8]} 11.
bxc3 {[%clk 0:03:12.1]} 11... Bb7 {[%clk 0:03:09.7]} 12. Ne5 {[%clk 0:03:13.3]}
12... Nbd7 {[%clk 0:03:01.2]} 13. Qe2 {[%clk 0:02:59.1]} 13... Ne4 {[%clk
0:02:37]} 14. Bb2 {[%clk 0:02:12.6]} 14... Rc8 {[%clk 0:02:30.5]} 15. Nxd7
{[%clk 0:01:46.8]} 15... Qxd7 {[%clk 0:02:27.3]} 16. f3 {[%clk 0:01:47.4]} 16...
Nf6 {[%clk 0:02:09]} 17. Bb5 {[%clk 0:01:41.2]} 17... Qc7 {[%clk 0:01:56.1]} 18.
Rac1 {[%clk 0:01:35.2]} 18... Nd5 {[%clk 0:01:46.8]} 19. c4 {[%clk 0:01:26.8]}
19... Nf4 {[%clk 0:01:43.7]} 20. Qe3 {[%clk 0:01:27.5]} 20... a6 {[%clk
0:01:43.1]} 21. Ba4 {[%clk 0:01:27.8]} 21... Rfd8 {[%clk 0:01:34.5]} 22. Bb3
{[%clk 0:01:12.2]} 22... Ng6 {[%clk 0:01:08.8]} 23. g3 {[%clk 0:01:08.6]} 23...
Ne7 {[%clk 0:01:04.7]} 24. Ba2 {[%clk 0:00:45.7]} 24... Nf5 {[%clk 0:01:04.5]}
25. Qf2 {[%clk 0:00:43.4]} 25... Qe7 {[%clk 0:00:56.3]} 26. Rfe1 {[%clk
0:00:37.3]} 26... Qg5 {[%clk 0:00:53.6]} 27. f4 {[%clk 0:00:27.2]} 27... Qg4
{[%clk 0:00:49.5]} 28. Rcd1 {[%clk 0:00:23.3]} 28... Nh4 {[%clk 0:00:47.1]} 29.
d5 {[%clk 0:00:19.2]} 29... Nf3+ {[%clk 0:00:40.9]} 30. Kg2 {[%clk 0:00:20.1]}
30... Nxe1+ {[%clk 0:00:41.7]} 31. Qxe1 {[%clk 0:00:21.2]} 31... exd5 {[%clk
0:00:41.8]} 32. cxd5 {[%clk 0:00:22.3]} 32... Rc2+ {[%clk 0:00:42.1]} 33. Rd2
{[%clk 0:00:23.7]} 33... Qf5 {[%clk 0:00:28.2]} 34. Kg1 {[%clk 0:00:18.8]} 34...
Rxd2 {[%clk 0:00:21.8]} 35. Qxd2 {[%clk 0:00:19.7]} 35... Bxd5 {[%clk
0:00:23.3]} 36. Qc3 {[%clk 0:00:18.6]} 36... f6 {[%clk 0:00:19.8]} 37. Qc7
{[%clk 0:00:17.1]} 37... Qd7 {[%clk 0:00:19.8]} 38. Bxd5+ {[%clk 0:00:16]} 38...
Kh8 {[%clk 0:00:19.6]} 39. Qxd7 {[%clk 0:00:16]} 39... Rxd7 {[%clk 0:00:20.5]}
40. Be6 {[%clk 0:00:16.5]} 40... Rd2 {[%clk 0:00:21.5]} 41. Bc3 {[%clk
0:00:16.6]} 41... Rc2 {[%clk 0:00:22.3]} 42. Bb4 {[%clk 0:00:16.8]} 42... a5
{[%clk 0:00:23.2]} 43. Bf8 {[%clk 0:00:17.1]} 43... Rc8 {[%clk 0:00:22.9]} 44.
Bxc8 {[%clk 0:00:13.9]} 1-0